Cogmind - Beta 16.1 @@@ ROGUE MODE // 2026.02.10 @ 19:58:12 Player: Drago Result: Self-destructed Performance ------------- Evolutions (4) 2000 Regions Visited (4) 800 Robots Destroyed (36) 180 Value Destroyed (1264) 1264 Prototype IDs (12) 240 Alien Tech Used (0) 0 Bonus (1270) 1270 TOTAL SCORE: 5754 Bonus ------- High Alert Combat Kills 62 Follower Combat Kills 475 Registered with UFD 300 Met Optimus in HQ 500 Friendly Fire -67 Cogmind --------- Core Integrity 620/850 Matter 245/300 Energy 150/150 System Corruption 2% Temperature Warm (192) Movement Walking (121) Location -6/Factory Parts ------- > --- POWER (1) -------- Light Angular Momentum Engine > --- PROPULSION (4) --- Improved Carbon-fiber Leg Improved Titanium Leg Improved Titanium Leg > --- UTILITY (7) ------ Improved Cryofiber Web Improved Cooling System Medium Storage Unit Seismic Detector Hacking Suite Hacking Suite > --- WEAPON (3) ------- (None) > --- INVENTORY (10) --- Scrap Suit Large Matter Pod (150) Enhanced Optical Array Hardened Heavy Armor Plating Layered Light Armor Plating High-powered Tractor Beam Botcube Peak State ------------ > --- POWER ------------ Light Angular Momentum Engine > --- PROPULSION ------- Improved Carbon-fiber Leg Improved Titanium Leg Improved Titanium Leg Flexi-carbon Leg > --- UTILITY ---------- Improved Cryofiber Web Improved Cooling System Medium Storage Unit Medium Reactive Plating Hacking Suite Scrapoid Pod > --- WEAPON ----------- Improved Lightning Gun Field Laser Coil Gun > --- INVENTORY -------- Improved Carbon-fiber Leg Scrap Suit Seismic Detector Hardened Heavy Armor Plating High-powered Tractor Beam Precision Grenade Launcher Botcube [Rating: 68] Favorites ----------- Power Light Ion Engine Engine Light Ion Engine Propulsion Improved Titanium Leg Treads Light Treads Leg Improved Titanium Leg Wheel Compact Wheel Utility Medium Storage Unit Device Seismic Detector Storage Medium Storage Unit Hackware Hacking Suite Protection Medium Reactive Plating Weapon Coil Gun Energy Gun Field Laser Energy Cannon Ion Burst Cannon Ballistic Gun Coil Gun Ballistic Cannon Light Cannon Launcher Precision Grenade Launcher Special Weapon Mining Laser Build | -11 -10 -10 -9 -6 ------- Run | Yrd Mat Sub Scr Fac Slots Evolved 8 | . . . . 8 Power . | . . . . . Propulsion 2 | . . . . 2 Utility 5 | . . . . 5 Weapon 1 | . . . . 1 Parts Attached 40 | 7 3 . 2 28 Power 3 | 1 . . . 2 Engine 3 | 1 . . . 2 Core . | . . . . . Reactor . | . . . . . Propulsion 8 | 2 . . 1 5 Treads 1 | 1 . . . . Leg 6 | . . . 1 5 Wheel 1 | 1 . . . . Hover . | . . . . . Flight . | . . . . . Utility 15 | 2 1 . . 12 Device 9 | 1 . . . 8 Storage 2 | 1 1 . . . Processor . | . . . . . Hackware 2 | . . . . 2 Protection 2 | . . . . 2 Artifact . | . . . . . Weapon 14 | 2 2 . 1 9 Energy Gun 3 | . . . . 3 Energy Cannon 1 | . . . . 1 Ballistic Gun 7 | 2 . . 1 4 Ballistic Cannon 1 | . 1 . . . Launcher 1 | . . . . 1 Special Weapon 1 | . 1 . . . Impact Weapon . | . . . . . Slashing Weapon . | . . . . . Piercing Weapon . | . . . . . Special Melee Weapon . | . . . . . Unidentified Prototypes 2 | . . . . 2 Parts Lost 7 | . . . . 7 Power . | . . . . . Propulsion 1 | . . . . 1 Utility 2 | . . . . 2 Weapon 4 | . . . . 4 Highest Loss Streak 6 | . . . . 6 To Critical Strikes . | . . . . . Average Backups 5 | 1 4 6 5 5 Power . | . 1 1 1 . Propulsion . | . . . . . Utility 2 | . . 1 1 3 Weapon 1 | . 2 3 3 . Tool/Special . | . . . . . Unused Backups 8 | . . . 2 6 Power . | . . . . . Propulsion 1 | . . . 1 . Utility 6 | . . . 1 5 Weapon 1 | . . . . 1 Tool/Special . | . . . . . Average Slot Usage (%) 94 | . 100 100 100 88 Engine 10 | . 14 14 14 6 Treads 7 | . 14 14 14 . Leg 15 | . . . 11 23 Wheel 3 | . 14 14 2 . Device 15 | . 14 14 14 18 Storage 10 | . 14 14 14 6 Hackware 3 | . . . . 6 Protection 2 | . . . . 4 Energy Gun 3 | . . . . 6 Ballistic Gun 11 | . 23 14 14 7 Ballistic Cannon 6 | . 3 13 14 . Peak Build Rating 68 | 7 7 7 16 68 Average Rating 31 | 5 7 7 12 55 On Entrance 7 | . 7 7 7 16 Avg Prop Armor Cover (%) 9 | 3 11 11 10 6 Naked Turns . | . . . . . Heaviest Build 63 | 13 19 19 20 63 Greatest Support 78 | 20 16 16 20 78 Greatest Overweight (x) 1 | . 1 1 1 1 Average Overweight (x) . | . . 1 . . Largest Inventory Capacity 10 | 8 10 10 10 10 Average Capacity 9 | 6 9 10 10 10 Most Carried 10 | 2 5 7 9 10 Average Carried 7 | 1 4 6 6 9 Final Capacity 10 | 8 10 10 10 10 Final Carried 9 | 2 5 7 9 9 Class Distribution -------------------- 56% | Mutant 32% | Tank 10% | Hacker-Tank Dominant Class ---------------- Mutant | -10/Materials Mutant | -10/Subcaves Mutant | -9/Scraptown Tank | -6/Factory Resources | -11 -10 -10 -9 -6 ----------- Run | Yrd Mat Sub Scr Fac Matter Collected 2173 | 273 71 114 24 1691 Remotely 350 | . . . . 350 Salvage Created 1920 | 63 70 103 . 1684 Parts 79 | 4 5 7 . 63 Haulers Intercepted . | . . . . . Recyclers Shooed 13 | . . . . 13 Parts Field Recycled . | . . . . . Retrieved Matter . | . . . . . Parts Self-Destructed 4 | . . 4 . . Prevented . | . . . . . Parts Restored . | . . . . . Kills | -11 -10 -10 -9 -6 ------- Run | Yrd Mat Sub Scr Fac Combat Hostiles Destroyed 19 | . 2 4 . 13 Guns 7 | . 1 . . 6 Cannons 5 | . 1 4 . . AOE 7 | . . . . 7 Classes Destroyed 11 | 2 1 3 . 5 Worker 4 | . . . . 4 Builder 1 | . . . . 1 Tunneler 3 | 1 . . . 2 Recycler 9 | 1 . . . 8 Swarmer 6 | . . 2 . 4 Grunt 4 | . 2 . . 2 Duelist 2 | . . . . 2 Sentry 3 | . . 1 . 2 Hunter 1 | . . . . 1 Programmer 2 | . . . . 2 Subdweller 1 | . . 1 . . Best Kill Streak 5 | 1 2 3 . 5 Combat Bots Only 4 | . 2 3 . 4 Max Kills in Single Turn 2 | 1 1 1 . 2 Gunslinging . | . . . . . Exploded 2 | . . . . 2 Melee . | . . . . . Uniques/NPCs Destroyed . | . . . . . Combat | -11 -10 -10 -9 -6 -------- Run | Yrd Mat Sub Scr Fac Hostile Shots Fired 250 | . 9 34 . 207 Missed 99 | . 3 15 . 81 Hits 151 | . 6 19 . 126 Melee 12 | . . . . 12 Projectile 139 | . 6 19 . 114 Critical Strikes 1 | . . . . 1 Damage Taken 2251 | . 78 206 . 1967 Core 277 | . 11 36 . 230 Absorbed by Shields . | . . . . . Ignored by Resistances 78 | . . . . 78 Core Remaining (%) 90 | 100 . . 81 . Volleys Fired 115 | 2 10 14 . 89 Largest 3 | 2 2 2 . 3 Hottest 171 | 40 100 50 . 171 Shots Fired 230 | 4 16 28 . 182 Gun 177 | 4 6 14 . 153 Cannon 38 | . 6 14 . 18 Launcher 11 | . . . . 11 Special 4 | . 4 . . . Kinetic 116 | 4 12 28 . 72 Thermal 82 | . 4 . . 78 Explosive 11 | . . . . 11 Electromagnetic 21 | . . . . 21 Robot Hit Streak 10 | 3 10 5 . 9 Robot Miss Streak 7 | . 1 4 . 7 Penetration Max 1 | . . . . 1 Secondary Targets 1 | . . . . 1 Max Gunslinging Chain 1 | . . . . 1 Shots Hit Robots 130 | 3 10 16 . 101 Core Hits 78 | 2 3 6 . 67 Critical Kills . | . . . . . Critical Parts Destroyed 2 | . . . . 2 Critical Strikes 2 | . . . . 2 Destroy 2 | . . . . 2 Melee Attacks . | . . . . . Impact . | . . . . . Slashing . | . . . . . Piercing . | . . . . . Sneak Attacks . | . . . . . Combat Hostiles . | . . . . . Follow-up Attacks . | . . . . . Damage Inflicted 4584 | 40 162 252 . 4130 Guns 1978 | 40 71 86 . 1781 Cannons 1045 | . 91 166 . 788 Explosions 1550 | . . . . 1550 Melee . | . . . . . Ramming 11 | . . . . 11 Kinetic 1189 | 40 162 252 . 735 Thermal 1613 | . . . . 1613 Explosive 1447 | . . . . 1447 Electromagnetic 324 | . . . . 324 Impact . | . . . . . Slashing . | . . . . . Piercing . | . . . . . Highest Corruption 2 | . . . . 2 Average Corruption 1 | . . . . 1 Corruption Purged . | . . . . . Corruption Blocked . | . . . . . Effects 17 | . . . . 17 Message Errors 2 | . . . . 2 Matter Fused 6 | . . . . 6 Energy Discharges 2 | . . . . 2 Data Loss (minor) 2 | . . . . 2 Data Loss (major) 1 | . . . . 1 Misfires 1 | . . . . 1 Alerts 1 | . . . . 1 Weapon Failures 2 | . . . . 2 Overload Shots . | . . . . . Overflow Damage 126 | . . . . 126 Projectiles 42 | . . . . 42 Explosions 84 | . . . . 84 Melee . | . . . . . Knockbacks 2 | . 1 1 . . Impact . | . . . . . Kinetic 2 | . 1 1 . . Secondary . | . . . . . Self-Inflicted Damage 146 | . . . . 146 Shots 3 | . . . . 3 Rammed . | . . . . . Targets Rammed 1 | . . . . 1 Kicked 1 | . . . . 1 Crushed . | . . . . . Highest Temperature 457 | . 60 . . 457 Average Temperature 90 | . 23 . . 101 Received Heat Transfer 426 | . 42 39 . 345 Effects 1 | . . . . 1 Energy Bleed 1 | . . . . 1 Siege Activations . | . . . . . Martial Activations . | . . . . . Shielding Activations . | . . . . . Robots Disrupted . | . . . . . Combat Hostiles . | . . . . . Robots Corrupted . | . . . . . Combat Hostiles . | . . . . . Parts Fried 2 | . . . . 2 Impact Corruptions . | . . . . . Robots Melted . | . . . . . Combat Hostiles . | . . . . . Parts Melted 2 | . . . . 2 Heat Transferred 2587 | . . . . 2587 Parts Sabotaged . | . . . . . Parts Stolen . | . . . . . Parts Stripped . | . . . . . Power Chain Reactions 1 | . . . . 1 Alert | -11 -10 -10 -9 -6 ------- Run | Yrd Mat Sub Scr Fac Maximum Alert Level 3 | . . . . 3 Low Security (%) 67 | 100 100 . . 61 Level 1 19 | . . . . 22 Level 2 10 | . . . . 12 Level 3 2 | . . . . 3 Level 4 . | . . . . . Level 5 . | . . . . . High Security . | . . . . . Max Security . | . . . . . Peak Influence 941 | 5 40 . . 941 Initial . | . . . . . Average 177 | 1 7 . . 210 Influence Increases 1720 | 10 50 60 . 1600 Destroy 0b10 Robot/C 620 | . 40 60 . 520 Destroy 0b10 Robot/NC 105 | 10 . . . 95 Destroy Leader 124 | . 10 . . 114 Allied During Kill 142 | . . . . 142 Successful Hack 32 | . . . . 32 Disable Machine 390 | . . . . 390 Anti-Garrison Action 150 | . . . . 150 Destroy Structure 157 | . . . . 157 Influence Decreases 810 | 10 40 70 . 690 Entered New Map 6 | . . 6 . . Time Decay 564 | 10 40 64 . 450 Lost Part 70 | . . . . 70 Lost Ally 20 | . . . . 20 Purge Threat 150 | . . . . 150 Squads Dispatched 8 | . . . . 8 Investigation . | . . . . . Extermination 3 | . . . . 3 Reinforcement 2 | . . . . 2 Assault 3 | . . . . 3 Garrison . | . . . . . Intercept . | . . . . . Searches Triggered . | . . . . . Construction Impeded 2 | . . . . 2 Haulers Reinforced . | . . . . . Active Scanning Responses . | . . . . . Cargo Convoy Interrupts . | . . . . . Stealth | -11 -10 -10 -9 -6 --------- Run | Yrd Mat Sub Scr Fac Distress Signals 3 | . 1 . . 2 Communications Jammed . | . . . . . Distress Signals . | . . . . . Times Spotted 47 | . 3 4 . 40 Peak Tracking Total 7 | . 3 3 . 7 Tactical Retreats . | . . . . . Traps | -11 -10 -10 -9 -6 ------- Run | Yrd Mat Sub Scr Fac Traps Triggered . | . . . . . Indirectly . | . . . . . Trap Hack Attempts . | . . . . . Triggered . | . . . . . Disarmed . | . . . . . Reprogrammed . | . . . . . Reused . | . . . . . Traps Extracted . | . . . . . Installed . | . . . . . Triggered . | . . . . . Machines | -11 -10 -10 -9 -6 ---------- Run | Yrd Mat Sub Scr Fac Machines Disabled 27 | . . . . 27 Max in Single Turn 6 | . . . . 6 Garrison Access 3 | . . . . 3 Machines Repaired . | . . . . . Machines Dismantled . | . . . . . Machines Sabotaged . | . . . . . Overloaded Fab Kills . | . . . . . Hacking | -11 -10 -10 -9 -6 --------- Run | Yrd Mat Sub Scr Fac Machines Accessed 21 | . 2 2 5 12 Terminals 11 | . 2 . . 9 Fabricators . | . . . . . Repair Stations . | . . . . . Recycling Units . | . . . . . Scanalyzers 1 | . . . . 1 Garrison Access 2 | . . . . 2 Total Hacks 65 | . 4 3 20 38 Successful 44 | . 3 3 20 18 Failed 20 | . 1 . . 19 Catastrophic 2 | . 1 . . 1 Database Lockouts 1 | . . . . 1 Manual 14 | . 3 . . 11 Terminals 36 | . 4 . . 32 Fabricators . | . . . . . Repair Stations . | . . . . . Recycling Units . | . . . . . Scanalyzers 2 | . . . . 2 Garrison Access 4 | . . . . 4 Terminal Hacks 38 | . 2 3 20 13 Record 11 | . . 1 10 . Robot Analysis 10 | . 1 . 9 . Prototype ID Bank 2 | . . . . 2 Open Door 1 | . . 1 . . Branch Access Points 1 | . . . . 1 Emergency Access Points 1 | . . . . 1 Recycling Unit Index 1 | . . . . 1 Alert Level 1 | . . . . 1 Unreport Threat 1 | . . . . 1 Locate Traps 4 | . 1 . . 3 Registered Components 1 | . . . . 1 Zone Layout 2 | . . . . 2 Proto ID Catalog 1 | . . . 1 . Release Object 1 | . . 1 . . Fabricator Hacks . | . . . . . Repair Station Hacks . | . . . . . Recycling Unit Hacks . | . . . . . Scanalyzer 1 | . . . . 1 Retrieve Study 1 | . . . . 1 Garrison Access Hacks 2 | . . . . 2 Seal Access 2 | . . . . 2 Unauthorized Hacks 3 | . 1 . . 2 Terminals 3 | . 1 . . 2 Botnet 3 | . 1 . . 2 Fabricators . | . . . . . Repair Stations . | . . . . . Recycling Units . | . . . . . Scanalyzers . | . . . . . Garrison Access . | . . . . . Data Cores Recovered . | . . . . . Used . | . . . . . Hacking Detections 12 | . 2 . . 10 Full Trace Events . | . . . . . Feedback Events . | . . . . . Feedback Blocked . | . . . . . Robot Schematics Acquired . | . . . . . Robots Built . | . . . . . Authchips . | . . . . . Time . | . . . . . Total Robot Build Rating . | . . . . . Part Schematics Acquired . | . . . . . Parts Built . | . . . . . Authchips . | . . . . . Time . | . . . . . Total Part Build Rating . | . . . . . Part Studies Acquired 1 | . . . . 1 Parts Repaired . | . . . . . Time . | . . . . . Parts Recycled . | . . . . . Recycled Matter . | . . . . . Retrieved Matter . | . . . . . Retrieved Components . | . . . . . Parts Scanalyzed . | . . . . . Part Schematics Acquired . | . . . . . Parts Damaged . | . . . . . Bothacking | -11 -10 -10 -9 -6 ------------ Run | Yrd Mat Sub Scr Fac Used RIF Installer . | . . . . . Robots Hacked . | . . . . . Non-combat . | . . . . . Combat . | . . . . . Robot Hacks Applied . | . . . . . Relay Couplers Released 2 | . . . . 2 Machine Destruction 2 | . . . . 2 Fabnet Peak Effective % . | . . . . . Robots Rewired . | . . . . . Allies Hacked . | . . . . . Hacks Repelled . | . . . . . Allies | -11 -10 -10 -9 -6 -------- Run | Yrd Mat Sub Scr Fac Total Allies 5 | . . . . 5 Largest Group 5 | . . . . 5 Highest-Rated Group 235 | . . . . 235 Highest-Rated Ally 47 | . . . . 47 Initial UFD Resources 24 | . . . . 24 Total Orders . | . . . . . Ally Attacks 76 | . . . . 76 Total Damage 2900 | . . . . 2900 Kills 21 | . . . . 21 Allies Corrupted . | . . . . . Allies Melted . | . . . . . Intel | -11 -10 -10 -9 -6 ------- Run | Yrd Mat Sub Scr Fac Active Infowar (turns) 3553 | 23 269 315 1438 1508 Sensors 123 | . . . . 123 Seismic 3430 | 23 269 315 1438 1385 Robot Analysis Total 10 | . 1 . 9 . Derelict Logs Recovered 5 | . . 3 2 . Drone Launches . | . . . . . Drone Recoveries . | . . . . . Exploration | -11 -10 -10 -9 -6 ------------- Run | Yrd Mat Sub Scr Fac Turns Passed 3953 | 89 269 315 1438 1842 Spaces Moved 2848 | 46 196 229 1199 1178 Core 2 | 2 . . . . Treads 44 | 44 . . . . Legs 2173 | . . . 995 1178 Wheels 629 | . 196 229 204 . Hover . | . . . . . Flight . | . . . . . Fastest Speed 50 | 50 100 115 115 117 Average Speed 120 | 155 114 115 119 122 Slowest Speed 190 | 160 115 115 120 190 Overloaded Moves . | . . . . . Propulsion Burnouts . | . . . . . Robots Hopped . | . . . . . Potential Cave-ins . | . . . . . Cave-ins Triggered . | . . . . . Exploration Rate (%) 31 | 3 26 14 85 31 Regions Visited 4 Branch Regions 2 Pre-discovered Areas 3 | . . . 3 . Known Exits Taken . | . . . . . Unknown Exits Taken 4 | 1 1 1 1 . Scrap Searched 3 | . . . 3 . Spaces Dug 26 | . . . . 26 Terrain Destroyed 108 | . . . . 108 Melee . | . . . . . Projectile 5 | . . . . 5 AOE 102 | . . . . 102 Terrain Rammed . | . . . . . Walls Destroyed . | . . . . . Machines Disabled . | . . . . . Actions | -11 -10 -10 -9 -6 --------- Run | Yrd Mat Sub Scr Fac Total 3143 | 56 215 252 1210 1410 Wait 89 | . 5 7 2 75 Move 2843 | 45 195 228 1198 1177 Hop . | . . . . . Pick Up 18 | 2 1 2 3 10 Fast Attach 29 | 7 1 . 2 19 Attach 7 | . . . . 7 Detach 3 | . 1 . . 2 Swap 12 | . 2 1 . 9 Drop 25 | . . . 5 20 Fire 115 | 2 10 14 . 89 Melee . | . . . . . Ram . | . . . . . Kick 1 | . . . . 1 Crush . | . . . . . Escape Stasis 1 | . . . . 1 Rewire . | . . . . . Trap . | . . . . . Miscellaneous . | . . . . . Route ------- -11/Scrapyard -10/Materials -10/Subcaves -9/Scraptown (discovered 2 exits: *Fac x2) -6/Factory (discovered 4 exits: [*Fac x2] / Low x2) History --------- Turn | Location | Event 12 | -11/Scrapyard | Discovered new exit (range 16) 90 | -11/Scrapyard | Entered Materials 315 | -10/Materials | Build established: Mutant 354 | -10/Materials | Discovered new exit (range 3) 359 | -10/Materials | Entered Subcaves 360 | -10/Subcaves | Approached by a straggling Scientist 441 | -10/Subcaves | Learned location of 1 exit from Materials 496 | -10/Subcaves | Learned Materials terminal intel 549 | -10/Subcaves | Learned Materials terminal intel 674 | -10/Subcaves | Entered Scraptown 1015 | -9/Scraptown | Visited TADAMA 1037 | -9/Scraptown | Visited Awakened 1065 | -9/Scraptown | Heard Great Nut preacher, LISTEN AND RECITE! 1079 | -9/Scraptown | Visited SPCMW 1148 | -9/Scraptown | Visited Assassins FH 1184 | -9/Scraptown | Visited CPS Storage 1296 | -9/Scraptown | Visited UFD Registry 1305 | -9/Scraptown | Visited Cyclists 1338 | -9/Scraptown | Visited Fellowship of the Rings 1401 | -9/Scraptown | Scanned Subdweller tech in exchange for log data 1405 | -9/Scraptown | Learned 8 Research zone layouts 1406 | -9/Scraptown | Learned location of Zion (-6) 1467 | -9/Scraptown | Discovered new exit (range 9) 1548 | -9/Scraptown | Registered with UFD as "Softdrive" 1567 | -9/Scraptown | Entered Cyclist Reading Room 1572 | -9/Scraptown | Learned location of Exiles (-9) 1621 | -9/Scraptown | Visited Observation Area 1709 | -9/Scraptown | Visited Scrapoid Pod Storage 1715 | -9/Scraptown | Found Scrapoid Pod 1739 | -9/Scraptown | Visited Analyses Database 1769 | -9/Scraptown | Visited Botcube Research 1777 | -9/Scraptown | Found Botcube 1795 | -9/Scraptown | Visited Abandonware Association 1829 | -9/Scraptown | Visited Research Penetration Think Tank 1854 | -9/Scraptown | Visited Scrap Suit Storage 1879 | -9/Scraptown | Visited Chapter 10 1919 | -9/Scraptown | Visited Science Guys 1987 | -9/Scraptown | Found Scrap Suit 2032 | -9/Scraptown | Met Optimus 2032 | -9/Scraptown | Accepted into 0bPrime 2103 | -9/Scraptown | Discovered new exit (range 5) 2112 | -9/Scraptown | Entered Factory 2112 | -6/Factory | Evolved 8 slots: Propulsion x2, Utility x5, Weapon x1 2190 | -6/Factory | Identified exit to Lower Caves 2524 | -6/Factory | Discovered new exit (range 6) 2545 | -6/Factory | Build established: Tank 3027 | -6/Factory | Central database locked down 3318 | -6/Factory | Scrapoid Pod released 06F05-D (x5) 3512 | -6/Factory | First assault squad dispatched 3834 | -6/Factory | Build established: Hacker-Tank 3894 | -6/Factory | Discovered new exit (range 15) 3925 | -6/Factory | Lost 4 allies 3954 | -6/Factory | Self-destructed Last Messages --------------- 03934_ L-41 Fighter suffers critical hit (Destroy). 03934_ Destroyed Imp. Deuterium Engine. 03934_ HV Slug penetrates Wall. 03934_ R-10 Processor collects Imp. Deuterium Engine. 03935_ System corrupted: Matter fused (-8). 03938_ R-10 Processor collects Axe. 03942_ HV Slug penetrates Wall. 03945_ HV Slug penetrates L-41 Fighter. 03947_ Field Laser destroyed. 03947_ Hyp. Gauss Rifle destroyed. 03948_ Imp. Carbon-fiber Leg+ destroyed. 03950_ L-41 Fighter destroyed. 03950_ Med. Reactive Plating destroyed. 03950_ Destroyed Med. Reactive Plating. 03952_ Destroyed Microactuators. 03952_ Plasma Rifle destroyed. 03952_ Destroyed Plasma Rifle. 03952_ Prc. Grenade Launcher destroyed. Map ----- +----------------------------------------------------+ | ???????????????????????????????????????????? | | ???????????????????????????????????????????? | | ???????????????????????????????????????????? | | ???????????????????????????????????????????? | | ???????????????????????????????????????????? | | ?!?????????????????????????????????????????? | | ???????????????????????????????????????????? | | ???????????????????????????????????????????? | | ???????????????????????????????????????????? | | ???????????????????????????????????????????? | | ???????????????????????????????????????????? | | ???????????????????????????????????????????? | | ???????????????????????????????????????????? | | ???????????????????????????????????????????? | | ???????????????????????????????????????????? | | ???????????????????????????????????????????? | | ????????? ????????????????????????????????? | | ??????? ???????????????###??????????????? | | ?????# ? ??????????####Y####???????????? | | ?? # ? ??????????#/// #??????????? | | ? # ? ??????????#// """ #??????????? | | ##+"" # ??????????#// Y" #??????????? | | ?????????## """ #??????????? | | #?????????# #??????????? | | ##???????## """ #??????????? | | #???????# @% """ #??????????? | | ######??## llg""" #??????????? | | #??# = #??????????? | | ##### ###??????????? | | < g #??????????? | | g #??????????? | | + ?????????? | | # ???????? | | % #? !????? | | #########+######### #?? ???? | | ###???? ?????????? #??? ?? | | ! " #??# ??????????? #????"" ? | | ! G"#??# ???????????? #?????" ?? | | "" #??#??????????????#???????? ?? | | ####????????????????????????????? | | #???????????????????????????????? | | =% ###???????????????????????????????? | | ##?????????????????????????????????? | | "#?????????????????????????????????? | | "#?????????????????????????????????? | | " ?????????????????????>???????????? | | " #????????????????????????????????? | | " #????????????????????????????????? | | " #????????????????????????????????? | | "##????????????????????????????????? | +----------------------------------------------------+ Best States ------------- Heat Dissipation 64 Energy Generation 18 Energy Capacity 250 Matter Stores 300 Matter Capacity 300 Sight Range 16 Robot Scan Range 16 Terrain Scan Density 10 Base Temperature (-) 150 Armor Coverage 600 Resistance: KI 30 Evasion (%) 63 Recoil Reduction 1 Offensive Hacking 20 Item Schematics ----------------- None Robot Schematics ------------------ None Fabricated ------------ Nothing Repaired ---------- Nothing Studied --------- Imp. Carbon-fiber Leg | -6/Factory | Hacked Alien Tech Used ----------------- None Achievements -------------- Bob, First Of His Name Challenges ------------ None Game ------ Seed GuidedTerrorStripper Manual? 0 Play Time 00:42:18 Cumulative 140.3 hours Start 2026.02.10 @ 19:13:25 End 2026.02.10 @ 19:58:12 Sessions 1 Manual Loads 0 Difficulty Rogue Special Mode None Game No. 117 Rogue 117 Adventurer 0 Explorer 0 Win Type - Total 1 Types 1/0/0/0/0/0/0/0/0/0 Lore% 64 Gallery% 59 Achievement% 40 Wizard Run 0 Options --------- Layout 1 ASCII 0 Keyboard 0 Movement Numpad Keybinds 0 Fullscreen 1 Font 18/SmallcapsGlow Map View 50x40 Zoom Use 0% Tactical HUD 1 Map Filters NONE Filters NONE Steam 1 RUN: 45c38aea-cdad-4edc-84f8-4cee5b90d962